bitfinex-derivatives/quotes_SOLF0:USTF0_20220110
["timestamp","ask_amount","ask_price","bid_price","bid_amount"]
[1641842200201,141.23292008,134.58,134.5,6.06604157]
[1641842200402,2.67217661,134.57,134.5,6.06604157]
[1641842200601,2.67217661,134.57,134.51,4.20804157]
[1641842201502,113.56813008,134.58,134.51,12.54004157]
[1641842201706,113.56813008,134.58,134.53,27.66479]
[1641842201903,113.56813008,134.58,134.54,1.857]
[1641842203104,113.56813008,134.58,134.53,29.52179]
[1641842203704,113.56813008,134.58,134.54,4.207881]
[1641842204706,113.56813008,134.58,134.54,6.064881]
[1641842205007,113.56813008,134.58,134.54,1.857]
[1641842206708,113.56813008,134.58,134.5,1.857]
[1641842206910,121.51713008,134.58,134.49,5.94820607]
[1641842207108,121.51713008,134.58,134.48,1.858]
[1641842207308,121.51713008,134.58,134.5,4.20912259]
[1641842207709,19.21052244,134.57,134.48,4.20912259]
[1641842207908,27.66479,134.52,134.48,4.20912259]
[1641842208609,67.4109,134.56,134.48,4.20912259]
[1641842208810,67.4109,134.56,134.48,11.86812259]
[1641842209310,2.66964,134.55,134.48,11.86812259]
[1641842209512,2.66964,134.55,134.49,6.06712259]
[1641842210010,2.66964,134.55,134.5,4.20912259]
[1641842211712,27.66479,134.57,134.5,4.20912259]
[1641842211911,27.66479,134.57,134.51,29.52279]
[1641842212112,27.66479,134.57,134.51,37.57279]
[1641842212312,27.66479,134.57,134.52,4.20912259]
[1641842212512,27.66479,134.57,134.53,1.858]
[1641842212913,27.66479,134.57,134.52,4.20912259]
[1641842213313,1.46582401,134.56,134.54,4.20912259]
[1641842213715,1.46582401,134.56,134.52,4.20912259]
[1641842214913,1.46582401,134.56,134.52,6.06712259]
[1641842215413,1.46582401,134.57,134.53,4.20912259]
[1641842215615,1.46582401,134.57,134.54,1.858]
[1641842215815,1.46582401,134.57,134.54,7.591]
[1641842216415,1.46582401,134.57,134.55,4.20912259]
[1641842217015,1.46582401,134.57,134.55,2.259e-05]
[1641842217221,1.46582401,134.57,134.48,29.52179]
[1641842218119,29.13061401,134.57,134.48,29.52179]
[1641842218719,1.46582401,134.56,134.49,4.2082231]
[1641842218920,1.46582401,134.56,134.49,12.2822231]
[1641842219622,1.46582401,134.56,134.5,4.2082231]
[1641842219825,1.46582401,134.56,134.51,1.858]
[1641842220024,1.46582401,134.56,134.51,29.52279]
[1641842220424,1.46582401,134.56,134.52,4.2082231]
[1641842220625,1.46582401,134.56,134.52,13.3052231]
[1641842221324,1.46582401,134.56,134.53,4.2082231]
[1641842221724,1.46582401,134.56,134.52,9.097]
[1641842222426,1.46582401,134.56,134.53,4.20832018]
[1641842222927,1.46582401,134.57,134.5,1.858]
[1641842223127,147.17752472,134.58,134.48,1.858]
[1641842223528,8.62368301,134.56,134.48,1.858]
[1641842223729,15.51868301,134.56,134.47,11.46949562]
[1641842223929,5.94629522,134.54,134.42,1.858]
[1641842224131,27.66479,134.47,134.41,12.1587666]
[1641842224330,27.66479,134.47,134.41,10.2997666]
[1641842224529,27.66479,134.47,134.42,4.21075541]
[1641842224530,3.99213687,134.46,134.42,4.21075541]
[1641842225130,3.99213687,134.46,134.41,4.21075541]
[1641842226033,3.99213687,134.46,134.36,62.54556588]
[1641842226333,27.66479,134.42,134.36,62.54556588]
[1641842226733,27.66479,134.42,134.37,2.55428275]
[1641842227334,3.99213687,134.41,134.38,3.16665315]
[1641842230138,27.66479,134.39,134.37,2.55428275]
[1641842230337,27.66479,134.39,134.37,8.275e-05]
[1641842231640,4.2123234,134.38,134.37,3.2725108]
[1641842232043,27.66479,134.39,134.37,3.2725108]
[1641842233041,27.66479,134.42,134.37,3.2725108]
[1641842233442,4.21200389,134.41,134.37,3.2725108]
[1641842237343,4.21200389,134.41,134.37,3.27242805]
[1641842237543,4.21200389,134.41,134.37,1.08e-05]
[1641842238344,27.66479,134.39,134.37,1.08e-05]
[1641842238844,4.21200389,134.38,134.37,1.08e-05]
[1641842239644,4.21200389,134.38,134.34,25.86313757]
[1641842240248,4.21200389,134.38,134.35,1.84691039]
[1641842242249,4.21200389,134.38,134.35,10.30891039]
[1641842242647,4.21200389,134.38,134.36,1.84691039]
[1641842243848,4.21200389,134.38,134.35,1.039e-05]
[1641842246551,4.21200389,134.38,134.35,1.86001039]
[1641842246753,27.66479,134.42,134.35,1.86001039]
[1641842246953,27.66479,134.42,134.35,6.81801039]
[1641842247154,4.21239867,134.41,134.36,1.039e-05]
[1641842248653,4.21239867,134.41,134.35,1.039e-05]
[1641842248855,4.21239867,134.41,134.35,1.86001039]
[1641842253157,4.21239867,134.41,134.35,1.039e-05]
[1641842253358,10.16450648,134.41,134.35,1.039e-05]
[1641842254160,4.21239867,134.4,134.35,1.039e-05]
[1641842254759,10.89239867,134.4,134.35,1.039e-05]
[1641842255059,5.95298154,134.39,134.35,1.039e-05]
[1641842255258,10.16538021,134.39,134.35,1.039e-05]
[1641842255659,4.21239867,134.38,134.35,1.039e-05]
[1641842256258,4.21239867,134.41,134.35,1.039e-05]
[1641842257660,4.21239867,134.41,134.35,7.97801039]
[1641842258262,4.21239867,134.41,134.36,1.039e-05]
[1641842260062,4.21239867,134.41,134.35,9.06401039]
[1641842260562,4.21239867,134.41,134.36,1.039e-05]
[1641842261463,4.21239867,134.41,134.35,1.039e-05]
[1641842265769,4.21239867,134.41,134.36,1.86]
[1641842265976,4.21239867,134.41,134.36,8.158]
[1641842266179,4.21239867,134.41,134.37,1.039e-05]
[1641842266378,9.867e-05,134.41,134.37,27.66480039]
[1641842266579,15.732105,134.43,134.38,1.86]
[1641842267681,4.21140776,134.42,134.39,1.46708128]
[1641842267881,4.21140776,134.42,134.39,10.44708128]
[1641842268981,4.21140776,134.42,134.4,1.46708128]
[1641842271985,4.21140776,134.42,134.36,1.46708128]
[1641842272384,4.21140776,134.42,134.35,1.46708128]
[1641842272687,4.21140776,134.42,134.36,1.86]
[1641842272885,4.21140776,134.42,134.36,17.59496652]
[1641842273285,4.21140776,134.42,134.37,1.46708128]
[1641842274187,32.79350867,134.46,134.37,1.46708128]
[1641842274586,27.66479,134.44,134.37,1.46708128]
[1641842274787,35.32579,134.44,134.37,3.32708128]
[1641842275187,4.21140776,134.43,134.38,1.46708128]
[1641842276588,4.21140776,134.45,134.38,1.46708128]
[1641842276788,27.66479,134.44,134.38,1.46708128]
[1641842277488,4.21140776,134.43,134.38,1.46708128]
[1641842277689,4.21140776,134.43,134.39,2.55786221]
[1641842278092,4.21140776,134.43,134.4,1.46708128]
[1641842278693,5.95196063,134.41,134.39,1.46714349]
[1641842278894,27.66479,134.4,134.36,15.73496652]
[1641842279096,34.35679,134.4,134.36,15.73496652]
[1641842279893,4.21306525,134.39,134.37,2.00309292]
[1641842281594,11.93206525,134.39,134.37,2.00309292]
[1641842281993,11.93206525,134.39,134.34,25.86313757]
[1641842282195,4.21306525,134.38,134.29,10.26405833]
[1641842282493,13.09834151,134.37,134.29,25.81154914]
[1641842282693,5.95504927,134.34,134.29,25.81154914]
[1641842282894,27.66479,134.3,134.29,25.81154914]
[1641842283092,35.24479,134.3,134.29,10.26405833]
[1641842283693,35.24479,134.3,134.29,12.17641928]
[1641842286998,27.66479,134.32,134.29,12.17641928]
[1641842287199,7.14234106,134.41,134.29,21.36841928]
[1641842287401,71.9338,134.4,134.29,21.36841928]
[1641842287601,76.14829417,134.4,134.3,1.91236095]
[1641842288000,4.21449417,134.39,134.31,1.91236095]
[1641842288400,10.16755603,134.39,134.32,1.91236095]
[1641842288901,27.66479,134.35,134.33,1.91236095]
[1641842289304,27.66479,134.35,134.34,1.91236095]
[1641842289803,27.66479,134.35,134.29,10.26405833]
[1641842291003,27.66479,134.35,134.3,1.18266544]
[1641842291906,27.66479,134.35,134.25,26.02313988]
[1641842292106,5.95707786,134.3,134.25,26.02313988]
[1641842292306,13.93307786,134.3,134.25,26.02313988]
[1641842293010,27.66479,134.28,134.26,1.31798309]
[1641842296615,35.07179,134.28,134.26,1.31798309]
[1641842299316,35.07179,134.28,134.26,8.309e-05]
[1641842299520,35.07179,134.28,134.2,1.861]
[1641842299715,5.95898573,134.26,134.19,25.89685099]
[1641842300717,5.95898573,134.26,134.2,0.84361387]
[1641842301118,27.66479,134.21,134.2,0.84361387]
[1641842301318,34.36679,134.21,134.2,0.84361387]
[1641842301717,34.36679,134.21,134.17,0.84361387]
[1641842304424,27.66479,134.23,134.17,0.84361387]
[1641842304627,27.66479,134.23,134.16,0.84361387]
[1641842306427,27.66479,134.23,134.17,1.862]
[1641842307129,4.21797855,134.22,134.18,0.84361387]
[1641842308130,27.66479,134.23,134.18,0.84361387]
[1641842308329,27.66479,134.23,134.17,0.84361387]
[1641842309232,4.21820311,134.22,134.17,0.84361387]
[1641842309632,4.21820311,134.22,134.15,0.84361387]
[1641842309831,4.21820311,134.22,134.15,2.70661387]
[1641842310431,4.21820311,134.22,134.16,0.84361387]
[1641842310631,4.21820311,134.22,134.17,1.863]
[1641842311131,27.66479,134.23,134.17,1.863]
[1641842311537,27.66479,134.23,134.18,0.84361387]
[1641842312239,4.2180172,134.22,134.16,0.84361387]
[1641842312438,4.2180172,134.22,134.16,16.53795937]
[1641842313238,4.2180172,134.22,134.17,0.84361387]
[1641842313638,55.32958,134.23,134.17,0.84361387]
[1641842314438,4.21811908,134.22,134.17,16.53795937]
[1641842314941,4.21811908,134.22,134.18,0.84361387]
[1641842315639,1.908e-05,134.22,134.18,0.84361387]
[1641842315838,8.57467888,134.35,134.19,1.862]
[1641842315839,21.6509,134.31,134.19,1.862]
[1641842316039,21.6509,134.31,134.17,9.393]
[1641842316040,21.6509,134.31,134.18,7.82397996]
[1641842316739,5.95537215,134.34,134.19,15.6943455]
[1641842316938,5.95537215,134.34,134.2,1.861]
[1641842317140,27.66479,134.28,134.2,1.861]
[1641842317339,33.77979,134.28,134.2,3.40601322]
[1641842317541,33.77979,134.28,134.21,1.54501322]
[1641842317739,4.21678347,134.27,134.21,1.54501322]
[1641842318139,4.21678347,134.27,134.22,1.54501322]
[1641842318540,4.21678347,134.27,134.23,1.54501322]
[1641842318939,4.21678347,134.27,134.24,1.54501322]
[1641842319142,27.66479,134.25,134.24,1.54501322]
[1641842319439,34.02679,134.25,134.19,27.66479]
[1641842319641,34.02679,134.25,134.18,15.6943455]
[1641842319839,4.21678347,134.24,134.18,15.6943455]
[1641842321246,27.66479,134.22,134.18,15.6943455]
[1641842321743,4.21678347,134.21,134.18,15.6943455]
[1641842322443,13.07778347,134.21,134.18,15.6943455]
[1641842322745,13.07778347,134.21,134.19,2.54547336]
[1641842322945,8.861,134.21,134.19,2.54547336]
[1641842323946,8.861,134.21,134.18,15.6943455]
[1641842324146,8.861,134.21,134.13,15.45208483]
[1641842324147,14.82197576,134.21,134.13,15.45208483]
[1641842324548,5.96139504,134.2,134.1,1.863]
[1641842324749,10.18084207,134.2,134.1,1.863]
[1641842325149,27.66479,134.15,134.1,1.863]
[1641842325450,36.18679,134.15,134.09,48.01379771]
[1641842326650,8.522,134.15,134.07,29.52879]
[1641842326849,27.66479,134.17,134.07,29.52879]
[1641842327249,27.66479,134.17,134.1,27.66479]
[1641842329154,27.66479,134.17,134.09,1.863]
[1641842329454,33.71479,134.17,134.09,1.863]
[1641842330657,33.71479,134.17,134.08,1.863]
[1641842332156,33.71479,134.17,134.08,7.82953174]
[1641842332757,27.66479,134.17,134.08,7.82953174]
[1641842333261,27.66479,134.17,134.08,1.863]
[1641842333462,55.32958,134.17,134.07,39.81454793]
[1641842333661,4.21983416,134.16,134.07,39.81454793]
[1641842333861,4.21983416,134.16,134.07,45.78133912]
[1641842334262,4.21983416,134.16,134.08,5.96637747]
[1641842334461,4.21983416,134.16,134.09,1.864]
[1641842334661,19.80107282,134.25,134.1,5.96549825]
[1641842334863,19.80107282,134.25,134.11,72.2966]
[1641842335063,19.80107282,134.25,134.11,79.1696]
[1641842335264,4.21866726,134.24,134.12,27.66479]
[1641842335464,27.66479,134.21,134.13,1.863]
[1641842335664,35.69079,134.21,134.13,3.41083341]
[1641842336065,4.21866726,134.2,134.14,1.54783341]
[1641842336864,4.21866726,134.2,134.13,1.54783341]
[1641842337463,27.66479,134.18,134.13,1.54783341]
[1641842338368,27.66479,134.18,134.11,1.54783341]
[1641842338966,4.21977189,134.17,134.11,1.54783341]
[1641842339167,12.96477189,134.17,134.11,1.54783341]
[1641842339367,27.66479,134.14,134.11,1.54783341]
[1641842339567,34.71279,134.14,134.11,1.54783341]
[1641842339770,34.71279,134.14,134.08,1.54783341]
[1641842340669,34.71279,134.14,134.07,1.54783341]
[1641842341872,34.71279,134.14,134.07,3.341e-05]
[1641842342073,10.18578683,134.13,134.07,3.341e-05]
[1641842342473,5.96449891,134.13,134.07,3.341e-05]
[1641842343376,27.66479,134.11,134.07,3.341e-05]
[1641842343774,4.22244399,134.1,134.07,3.341e-05]
[1641842344373,35.49579,134.11,134.07,3.341e-05]
[1641842344573,4.22211399,134.09,134.07,3.341e-05]
[1641842344974,4.22211399,134.09,134.04,41.9184723]
[1641842345175,4.22211399,134.1,134.04,41.9184723]
[1641842345375,27.66479,134.06,134.04,41.9184723]
[1641842345674,36.17979,134.06,134.04,41.9184723]
[1641842346476,36.17979,134.06,134.05,1.55092478]
[1641842347476,27.66479,134.11,134.05,1.55092478]
[1641842347876,27.66479,134.11,134.05,10.80492478]
[1641842348478,27.66479,134.11,134.06,1.55092478]
[1641842350779,27.66479,134.14,134.06,1.55092478]
[1641842351080,4.22097183,134.13,134.06,1.55092478]
[1641842351479,55.32958,134.14,134.06,1.55092478]
[1641842353378,4.22158966,134.13,134.06,10.25310808]
[1641842353780,4.22158966,134.13,134.07,1.55092478]
[1641842355082,4.22158966,134.13,134.06,17.2796546]
[1641842355483,4.22158966,134.13,134.07,1.55092478]
[1641842355883,4.22158966,134.13,134.07,17.2796546]
[1641842356484,4.22158966,134.13,134.08,1.55092478]
[1641842358591,4.22158966,134.13,134.08,10.44092478]
[1641842359389,27.66479,134.14,134.09,1.55092478]
[1641842359592,27.66479,134.18,134.09,1.55092478]
[1641842359789,27.66479,134.18,134.1,1.863]
[1641842360190,27.66479,134.18,134.11,1.55092478]
[1641842360391,27.66479,134.18,134.11,8.28692478]
[1641842360591,27.66479,134.18,134.12,1.863]
[1641842361197,27.66479,134.18,134.13,1.55092478]
[1641842361995,27.66479,134.18,134.12,1.55092478]
[1641842364900,35.18279,134.18,134.13,4.39779862]
[1641842365101,35.18279,134.18,134.13,2.53479862]
[1641842365703,35.18279,134.18,134.14,1.55092478]
[1641842367102,35.18279,134.18,134.12,1.55092478]
[1641842371506,4.21971428,134.17,134.12,1.55092478]
[1641842382327,4.21971428,134.17,134.13,2.53913847]
[1641842382922,4.21971428,134.17,134.14,1.55092478]
[1641842386727,10.18258762,134.17,134.13,2.53913847]
[1641842386925,5.96419567,134.14,134.11,10.25310808]
[1641842387126,12.45519567,134.14,134.11,10.25310808]
[1641842388027,27.66479,134.12,134.09,15.73214675]
[1641842388529,4.22240345,134.11,134.1,1.17762146]
[1641842388728,11.42740345,134.11,134.1,1.17762146]
[1641842388928,11.42740345,134.11,134.08,52.20658036]
[1641842389128,11.42740345,134.11,134.05,15.78001237]
[1641842389328,7.205,134.11,134.05,15.78001237]
[1641842389530,5.96600414,134.1,134.05,15.78001237]
[1641842389730,5.96600414,134.1,134.04,62.90615408]
[1641842389932,27.66479,134.06,134.04,62.90615408]
[1641842390130,33.81079,134.06,134.04,62.90615408]
[1641842390332,33.81079,134.06,134.05,1.16689133]
[1641842392436,27.66479,134.06,134.05,1.16689133]
[1641842393237,27.66479,134.06,134.0,1.16689133]
[1641842393836,5.96600414,134.1,134.0,1.16689133]
[1641842394035,55.32958,134.12,134.01,1.864]
[1641842394436,55.32958,134.12,134.02,1.16689133]
[1641842395937,27.66479,134.07,134.02,1.16689133]
[1641842396640,27.66479,134.07,134.01,1.16689133]
[1641842397041,27.66479,134.07,134.02,1.16689133]
[1641842397443,27.66479,134.07,134.03,1.16689133]
[1641842397944,27.66479,134.07,134.04,1.16689133]
[1641842398342,27.66479,134.07,134.05,1.16689133]
[1641842398743,27.66479,134.07,134.06,1.16689133]
[1641842399844,27.66479,134.07,133.98,15.78001237]
[1641842400043,64.59658,134.07,133.98,15.78001237]
[1641842401143,64.59658,134.07,133.99,0.84472131]
[1641842401544,70.56381066,134.07,133.99,0.84472131]
[1641842401745,5.96808449,134.05,133.99,0.84472131]
[1641842402145,27.66479,134.03,133.99,0.84472131]
[1641842402347,33.37779,134.03,133.99,0.84472131]
[1641842402547,39.34668872,134.03,133.94,1.865]
[1641842402745,5.97105563,133.98,133.89,1.865]
[1641842402947,14.53605563,133.98,133.88,104.95355105]
[1641842403846,14.53605563,133.98,133.94,0.84523]
[1641842404247,27.66479,133.95,133.94,0.84523]
[1641842404447,34.79479,133.95,133.94,0.84523]
[1641842404646,34.79479,133.95,133.94,3e-05]
[1641842404848,34.79479,133.95,133.88,104.95355105]
[1641842406049,4.22716725,133.94,133.89,0.84543345]
[1641842406249,27.66479,133.91,133.89,0.84543345]
[1641842406450,36.16279,133.91,133.89,0.84543345]
[1641842408052,27.66479,133.95,133.89,0.84543345]
[1641842408248,27.66479,133.95,133.89,9.77743345]
[1641842408750,27.66479,133.95,133.9,0.84543345]
[1641842409751,27.66479,133.95,133.89,0.84543345]
[1641842410151,27.66479,133.95,133.88,0.84543345]
[1641842410351,27.66479,133.95,133.89,1.866]
[1641842411053,27.66479,133.95,133.9,0.84543345]
[1641842412055,4.22693926,133.94,133.87,0.84543345]
[1641842413756,5.97358293,133.93,133.87,0.84543345]
[1641842414157,5.97473547,133.9,133.87,0.84543345]
[1641842414355,27.66479,133.88,133.86,7.93768101]
[1641842415558,4.22971127,133.87,133.86,7.93768101]
[1641842415756,12.98271127,133.87,133.86,7.93768101]
[1641842416156,12.98271127,133.87,133.86,8.8050483]
[1641842417759,12.98271127,133.87,133.86,7.93768101]
[1641842417957,12.98271127,133.87,133.77,1.867]
[1641842418160,12.98271127,133.87,133.75,27.66479]
[1641842418358,27.66479,133.83,133.75,27.66479]
[1641842418559,33.54779,133.83,133.75,27.66479]
[1641842418760,4.22971127,133.82,133.77,0.8768818]
[1641842420472,27.66479,133.8,133.77,0.8768818]
[1641842420664,34.88579,133.8,133.77,0.8768818]
[1641842420863,4.22971127,133.79,133.77,0.8768818]
[1641842421263,4.22971127,133.79,133.69,159.85071429]
[1641842422367,27.66479,133.77,133.69,159.85071429]
[1641842422565,5.98090388,133.76,133.69,157.98271429]
[1641842423168,4.22971127,133.75,133.7,1.07453333]
[1641842424467,27.66479,133.71,133.7,1.07453333]
[1641842424668,35.89779,133.71,133.7,1.07453333]
[1641842425066,40.12750127,133.71,133.7,1.07453333]
[1641842425267,12.46271127,133.71,133.7,1.07453333]
[1641842425467,4.22971127,133.71,133.7,1.07453333]
[1641842425669,5.9813056,133.76,133.69,1.07453333]
[1641842426069,4.23275103,133.75,133.69,1.07453333]
[1641842426469,27.66479,133.74,133.69,1.07453333]
[1641842426870,4.23275103,133.73,133.69,1.07453333]
[1641842428175,27.66479,133.74,133.69,1.07453333]
[1641842428673,4.23258203,133.73,133.69,1.07453333]
[1641842429375,10.76758203,133.73,133.69,1.07453333]
[1641842429674,6.535,133.73,133.69,1.07453333]
[1641842429874,4.23258203,133.72,133.66,1.07453333]
[1641842430375,27.66479,133.7,133.66,1.07453333]
[1641842430776,4.23258203,133.69,133.66,1.07453333]
[1641842430976,13.00758203,133.69,133.66,1.07453333]
[1641842431877,4.23258203,133.68,133.66,1.07453333]
[1641842432275,4.23258203,133.68,133.62,1.07453333]
[1641842432676,4.23258203,133.69,133.62,1.07453333]
[1641842432876,4.23258203,133.69,133.62,6.72153333]
[1641842433476,5.98573861,133.66,133.62,6.72153333]
[1641842433677,5.98573861,133.66,133.63,1.07453333]
[1641842434080,4.23258203,133.65,133.63,1.07453333]
[1641842434282,4.23258203,133.65,133.53,8.795]
[1641842434480,27.66479,133.6,133.53,27.66479]
[1641842434980,14.14476958,133.7,133.53,27.66479]
[1641842434981,7.18076958,133.7,133.53,27.66479]
[1641842435183,7.18076958,133.7,133.55,5.98993027]
[1641842435380,71.0435,133.8,133.56,1.87]
[1641842435580,73.6789,133.79,133.58,5.98865603]
[1641842435782,73.6789,133.79,133.59,141.224]
[1641842435981,29.64400332,133.75,133.59,148.11369134]
[1641842436381,27.66479,133.71,133.62,27.66479]
[1641842436582,27.66479,133.71,133.63,1.87]
[1641842436782,4.23485762,133.7,133.63,2.94769134]
[1641842437385,4.23485762,133.7,133.64,1.07769134]
[1641842437583,4.23485762,133.7,133.65,1.87]
[1641842438388,4.23485762,133.7,133.66,1.07769134]
[1641842439188,4.23485762,133.7,133.64,1.07769134]
[1641842440085,27.66479,133.73,133.64,1.07769134]
[1641842440286,19.70964396,133.81,133.65,1.87]
[1641842440485,27.66479,133.77,133.69,27.66479]
[1641842440685,27.66479,133.77,133.7,1.869]
[1641842441486,27.66479,133.77,133.71,0.91328389]
[1641842441487,4.23247232,133.76,133.71,0.91328389]
[1641842442286,4.23247232,133.78,133.71,0.91328389]
[1641842443088,4.23247232,133.78,133.71,6.89595866]
[1641842443287,4.23247232,133.78,133.71,13.46195866]
[1641842443288,7.232e-05,133.78,133.71,13.46195866]
[1641842443489,27.66479,133.82,133.72,1.869]
[1641842443792,27.66479,133.82,133.73,5.98178216]
[1641842443990,27.66479,133.82,133.74,1.868]
[1641842444487,27.66479,133.82,133.75,27.66479]
[1641842444891,4.23160116,133.81,133.76,1.70588268]
[1641842446099,4.23160116,133.81,133.77,1.868]
[1641842446698,4.23160116,133.81,133.78,1.70588268]
[1641842447701,4.23160116,133.81,133.77,1.70588268]
[1641842448301,4.23160116,133.81,133.75,1.70588268]
[1641842448501,4.23160116,133.81,133.76,29.53279]
[1641842449401,4.23160116,133.81,133.77,1.70588268]
[1641842449602,4.23160116,133.84,133.78,1.868]
[1641842450102,4.23160116,133.84,133.79,1.70588268]
[1641842450702,4.23160116,133.84,133.77,1.70588268]
[1641842451001,4.23160116,133.84,133.77,3.57388268]
[1641842451505,4.23160116,133.84,133.78,1.70588268]
[1641842452907,1.16e-06,133.84,133.78,1.70588268]
[1641842453107,15.56643785,133.89,133.78,1.70588268]
[1641842453306,57.24580135,133.91,133.81,5.97859832]
[1641842453506,57.24580135,133.91,133.82,1.867]
[1641842454208,41.6793635,133.91,133.82,1.867]
[1641842454406,4.2294694,133.9,133.83,3.482144]
[1641842454607,31.8942594,133.9,133.83,3.482144]
[1641842455406,4.2294694,133.89,133.83,3.482144]
[1641842456809,4.2294694,133.89,133.8,3.482144]
[1641842457009,4.2294694,133.89,133.81,1.867]
[1641842457209,4.2294694,133.89,133.84,3.482144]
[1641842457411,4.2294694,133.89,133.82,3.482144]
[1641842457609,4.2294694,133.89,133.82,5.349144]
[1641842457809,4.2294694,133.89,133.8,3.482144]
[1641842458010,4.2294694,133.89,133.81,1.867]
[1641842458509,4.2294694,133.89,133.81,29.53179]
[1641842458709,4.2294694,133.89,133.82,3.482144]
[1641842459911,4.2294694,133.89,133.82,5.349144]
[1641842460414,4.2294694,133.89,133.83,3.482144]
[1641842461418,4.2294694,133.89,133.82,3.482144]
[1641842464222,5.97595284,133.87,133.82,3.482144]
[1641842464522,27.66479,133.85,133.82,3.482144]
[1641842464720,27.66479,133.85,133.78,3.482144]
[1641842465120,4.2294694,133.84,133.77,3.482144]
[1641842466422,4.2294694,133.84,133.77,5.350144]
[1641842466821,4.2294694,133.84,133.78,3.482144]
[1641842470027,4.2294694,133.84,133.78,10.265144]
[1641842470428,4.2294694,133.84,133.79,3.482144]
[1641842470628,4.2294694,133.84,133.79,5.350144]
[1641842471233,4.2294694,133.84,133.8,2.53032706]
[1641842471430,4.2294694,133.84,133.8,6.01247106]
[1641842471931,4.2294694,133.84,133.81,3.482144]
[1641842472129,4.2294694,133.84,133.81,11.280144]
[1641842472830,4.2294694,133.84,133.82,3.482144]
[1641842473633,4.2294694,133.88,133.82,3.482144]
[1641842474535,2.73363935,133.87,133.82,3.482144]
[1641842474934,4.2294694,133.86,133.82,3.482144]
[1641842476835,27.66479,133.87,133.82,3.482144]
[1641842477235,4.2294694,133.86,133.81,3.482144]
[1641842477638,6.96409557,133.86,133.81,3.482144]
[1641842477937,4.2294694,133.85,133.81,3.482144]
[1641842478137,12.8334694,133.85,133.81,3.482144]
[1641842478738,27.66479,133.83,133.81,3.482144]
[1641842479937,15.78306449,133.85,133.81,3.482144]
[1641842480139,2.73462617,133.86,133.81,10.818144]
[1641842480342,4.23026536,133.84,133.81,10.818144]
[1641842480741,4.23026536,133.85,133.82,3.482144]
[1641842481543,4.23026536,133.85,133.81,3.482144]
[1641842484348,11.23826536,133.85,133.81,3.482144]
[1641842484548,27.02132985,133.85,133.81,3.482144]
[1641842484948,4.23026536,133.84,133.81,3.482144]
[1641842486348,20.01332985,133.84,133.81,3.482144]
[1641842486750,4.23026536,133.83,133.81,3.482144]
[1641842486951,4.23026536,133.83,133.76,1.868]
[1641842487151,4.23026536,133.83,133.75,15.67048421]
[1641842488152,4.23026536,133.83,133.76,3.49275764]
[1641842488550,4.23026536,133.83,133.73,3.49275764]
[1641842488752,27.66479,133.82,133.74,27.66479]
[1641842489552,4.23026536,133.81,133.75,3.49275764]
[1641842489752,16.81333361,133.81,133.75,3.49275764]
[1641842489954,16.81333361,133.81,133.73,3.49275764]
[1641842490353,4.23026536,133.8,133.73,3.49275764]
[1641842490757,27.66479,133.75,133.73,3.49275764]
[1641842490955,36.12579,133.75,133.73,3.49275764]
[1641842491155,36.12579,133.75,133.73,5.764e-05]
[1641842491356,4.23026536,133.74,133.68,15.67048421]
[1641842492460,4.23026536,133.74,133.64,17.53948421]
[1641842493559,4.23026536,133.74,133.64,15.67048421]
[1641842494160,4.23026536,133.74,133.62,15.67048421]
[1641842494660,27.66479,133.69,133.62,15.67048421]
[1641842494962,27.66479,133.69,133.61,97.23729]
[1641842495160,27.66479,133.69,133.6,27.80924343]
[1641842495360,27.66479,133.69,133.6,25.93924343]
[1641842495562,4.2353891,133.68,133.6,25.93924343]
[1641842495762,4.2353891,133.68,133.61,1.87]
[1641842495962,4.2353891,133.68,133.6,25.93924343]
[1641842496462,40.82414438,133.75,133.61,1.87]
[1641842496661,27.66479,133.71,133.63,27.66479]
[1641842498163,27.66479,133.71,133.61,109.52299]
[1641842498363,4.23433271,133.7,133.61,109.52299]
[1641842498763,27.66479,133.71,133.61,109.52299]
[1641842499967,27.66479,133.71,133.61,9.498]
[1641842500167,4.23507703,133.7,133.61,1.87]
[1641842500366,12.64507703,133.7,133.6,25.93924343]
[1641842501267,4.23507703,133.69,133.6,25.93924343]
[1641842502366,4.23507703,133.7,133.6,25.93924343]
[1641842502568,55.32958,133.71,133.61,1.87]
[1641842502768,55.32958,133.71,133.62,27.66479]
[1641842502968,4.23451055,133.7,133.63,1.87]
[1641842503168,4.23451055,133.7,133.63,11.093]
[1641842504371,4.23451055,133.7,133.63,9.223]
[1641842505972,4.23451055,133.7,133.63,11.093]
[1641842506473,4.23451055,133.7,133.64,2.06519811]